fUSD/lending_fUSD_20250513
["ID","MTS","AMOUNT","RATE_DAILY","PERIOD"]
[360948564,1747159918567,-2832.85,0.00014246,2]
[360948565,1747159918577,-400.0,0.00014246,2]
[360948566,1747159918586,-498.07770672,0.00014246,2]
[360948567,1747159918595,-837.08,0.00014246,2]
[360948568,1747159918604,-722.75,0.00014246,2]
[360948569,1747159918614,-418.45,0.00014246,2]
[360948570,1747159918623,-186.69,0.00014246,2]
[360948571,1747159918632,-1518.61,0.00014246,2]
[360948572,1747159918641,-538.57,0.00014246,2]
[360948573,1747159918651,-2035.72,0.00014246,2]
[360948574,1747159918660,-452.37,0.00014246,2]
[360948575,1747159918670,-518.13717929,0.00014246,2]
[360948576,1747159918679,-504.22,0.00014246,2]
[360948577,1747159918689,-699.02,0.00014246,2]
[360948578,1747159918698,-928.98,0.00014246,2]
[360948579,1747159918707,-1636.63,0.00014246,2]
[360948580,1747159918716,-494.98,0.00014246,2]
[360948581,1747159918726,-1883.29,0.00014246,2]
[360948582,1747159918736,-610.23,0.00014246,2]
[360948583,1747159918747,-768.25,0.00014246,2]
[360948584,1747159918757,-768.75,0.00014246,2]
[360948585,1747159918767,-1014.11,0.00014246,2]
[360948586,1747159918777,-620.02,0.00014246,2]
[360948587,1747159918786,-1271.95,0.00014246,2]
[360948588,1747159918796,-400.0,0.00014246,2]
[360948589,1747159918805,-404.27493827,0.00014246,2]
[360948590,1747159918814,-756.59,0.00014246,2]
[360948591,1747159918824,-400.0,0.00014246,2]
[360948592,1747159918833,-935.97,0.00014246,2]
[360948593,1747159918842,-1412.1,0.00014246,2]
[360948594,1747159918851,-539.94,0.00014246,2]
[360948595,1747159918860,-1632.7,0.00014246,2]
[360948596,1747159918870,-400.0,0.00014246,2]
[360948597,1747159918880,-871.79,0.00014246,2]
[360948598,1747159918889,-451.47,0.00014246,2]
[360948599,1747159918899,-400.0,0.00014246,2]
[360948600,1747159918909,-560.27,0.00014246,2]
[360948601,1747159918918,-400.0,0.00014246,2]
[360948602,1747159918928,-2068.68,0.00014246,2]
[360948603,1747159918938,-570.27,0.00014246,2]
[360948604,1747159918948,-967.47,0.00014246,2]
[360948605,1747159918957,-669.93,0.00014246,2]
[360948606,1747159918967,-1036.32,0.00014246,2]
[360948607,1747159918976,-444.85,0.00014246,2]
[360948608,1747159918986,-400.0,0.00014246,2]
[360948609,1747159918997,-680.61,0.00014246,2]
[360948610,1747159919007,-4665.34,0.00014246,2]
[360948611,1747159919016,-400.0,0.00014246,2]
[360948612,1747159919026,-1314.16,0.00014246,2]
[360948613,1747159919048,-4183.88,0.00014246,2]
[360948614,1747159919063,-547.25,0.00014246,2]
[360948615,1747159919082,-400.0,0.00014246,2]
[360948616,1747159919100,-579.54,0.00014246,2]
[360948617,1747159919116,-786.38,0.00014246,2]
[360948618,1747159919135,-1255.33,0.00014246,2]
[360948619,1747159919152,-577.34,0.00014246,2]
[360948620,1747159919172,-2046.23,0.00014246,2]
[360948621,1747159919192,-9519.31,0.00014246,2]
[360948622,1747159919209,-834.73,0.00014246,2]
[360948623,1747159919228,-400.0,0.00014246,2]
[360948624,1747159919246,-1346.7,0.00014246,2]
[360948625,1747159919259,-2754.3,0.00014246,2]
[360948626,1747159919278,-400.0,0.00014246,2]
[360948627,1747159919292,-10256.28,0.00014246,2]
[360948628,1747159919309,-400.0,0.00014246,2]
[360948629,1747159919326,-487.25,0.00014246,2]
[360948630,1747159919342,-400.0,0.00014246,2]
[360948631,1747159919359,-400.0,0.00014246,2]
[360948632,1747159919375,-2145.85,0.00014246,2]
[360948633,1747159919391,-778.75,0.00014246,2]
[360948634,1747159919406,-1086.29,0.00014246,2]
[360948635,1747159919423,-712.61,0.00014246,2]
[360948636,1747159919438,-1146.85,0.00014246,2]
[360948637,1747159919453,-427.04,0.00014246,2]
[360948638,1747159919467,-1787.73,0.00014246,2]
[360948639,1747159919482,-587.09,0.00014246,2]
[360948640,1747159919497,-2676.84,0.00014246,2]
[360948641,1747159919512,-936.8,0.00014246,2]
[360948642,1747159919533,-538.65,0.00014246,2]
[360948643,1747159919552,-570.54,0.00014246,2]
[360948644,1747159919578,-671.91,0.00014246,2]
[360948645,1747159919593,-1004.59,0.00014246,2]
[360948646,1747159919611,-400.0,0.00014246,2]
[360948647,1747159919624,-583.74,0.00014246,2]
[360948648,1747159919644,-628.15,0.00014246,2]
[360948649,1747159919661,-409.42,0.00014246,2]
[360948650,1747159919679,-10626.02,0.00014246,2]
[360948651,1747159919694,-400.0,0.00014246,2]
[360948652,1747159919712,-515.12,0.00014246,2]
[360948653,1747159919730,-6049.69,0.00014246,2]
[360948654,1747159919748,-1033.11,0.00014246,2]
[360948655,1747159919765,-400.0,0.00014246,2]
[360948656,1747159919782,-437.19,0.00014246,2]
[360948657,1747159919797,-569.55,0.00014246,2]
[360948658,1747159919812,-467.47,0.00014246,2]
[360948659,1747159919830,-2264.96,0.00014246,2]
[360948660,1747159919847,-795.31,0.00014246,2]
[360948661,1747159919863,-405.13,0.00014246,2]
[360948662,1747159919879,-1277.12,0.00014246,2]
[360948663,1747159919895,-225.04,0.00014246,2]
[360948664,1747159919912,-400.0,0.00014246,2]
[360948665,1747159919928,-10483.18,0.00014246,2]
[360948666,1747159919943,-1585.22,0.00014246,2]
[360948667,1747159919960,-843.23,0.00014246,2]
[360948668,1747159919977,-1106.58,0.00014246,2]
[360948669,1747159919992,-400.0,0.00014246,2]
[360948670,1747159920008,-413.28,0.00014246,2]
[360948671,1747159920025,-1973.13,0.00014246,2]
[360948672,1747159920044,-400.0,0.00014246,2]
[360948673,1747159920059,-565.33,0.00014246,2]
[360948674,1747159920077,-1087.57,0.00014246,2]
[360948675,1747159920094,-2020.68,0.00014246,2]
[360948676,1747159920109,-400.0,0.00014246,2]
[360948677,1747159920125,-686.06,0.00014246,2]
[360948678,1747159920141,-400.0,0.00014246,2]
[360948679,1747159920156,-400.0,0.00014246,2]
[360948680,1747159920176,-1760.36,0.00014246,2]
[360948681,1747159920192,-2493.43,0.00014246,2]
[360948682,1747159920207,-483.53,0.00014246,2]
[360948683,1747159920223,-223.21975232,0.00014246,2]
[360948684,1747159920242,-523.64,0.00014246,2]
[360948685,1747159920261,-2179.19,0.00014246,2]
[360948686,1747159920277,-933.31,0.00014246,2]
[360948687,1747159920293,-1454.44,0.00014246,2]
[360948688,1747159920310,-448.16,0.00014246,2]
[360948689,1747159920327,-669.67,0.00014246,2]
[360948690,1747159920343,-495.63,0.00014246,2]
[360948691,1747159920359,-407.59,0.00014246,2]
[360948692,1747159920375,-2557.8,0.00014246,2]
[360948693,1747159920390,-733.19,0.00014246,2]
[360948694,1747159920407,-1387.03,0.00014246,2]
[360948695,1747159920423,-1323.75,0.00014246,2]
[360948696,1747159920439,-639.94,0.00014246,2]
[360948697,1747159920456,-1956.5,0.00014246,2]
[360948698,1747159920472,-101544.96,0.00014246,2]
[360948699,1747159920488,-447.02,0.00014246,2]
[360948700,1747159920506,-400.0,0.00014246,2]
[360948701,1747159920521,-400.0,0.00014246,2]
[360948702,1747159920536,-2181.62,0.00014246,2]
[360948703,1747159920552,-707.87,0.00014246,2]
[360948704,1747159920568,-946.15,0.00014246,2]
[360948705,1747159920583,-809.14,0.00014246,2]
[360948706,1747159920598,-676.8,0.00014246,2]
[360948707,1747159920614,-492.65,0.00014246,2]
[360948708,1747159920630,-151.0,0.00014259,2]
[360948709,1747159920645,-152.0,0.00014263,3]
[360948710,1747159920661,-4071.95,0.00014281,2]
[360948711,1747159920677,-1000.0,0.000143,2]
[360948712,1747159920692,-1000.0,0.00014387,2]
[360948713,1747159920708,-162.81,0.00014394,2]
[360948714,1747159920728,-1000.0,0.000145,2]
[360948715,1747159920744,-810.0,0.000145,4]
[360948716,1747159920761,-400.0,0.0001452,2]
[360948717,1747159920777,-2722.32,0.0001452,2]
[360948718,1747159920793,-151.0,0.0001452,2]
[360948719,1747159920808,-151.0,0.0001452,2]
[360948720,1747159920824,-916.93,0.0001452,2]
[360948721,1747159920840,-520.78,0.0001452,2]
[360948722,1747159920855,-506.41,0.0001452,2]
[360948723,1747159920871,-694.78,0.0001452,2]
[360948724,1747159920888,-400.0,0.0001452,2]
[360948725,1747159920903,-400.0,0.0001452,2]
[360948726,1747159920919,-626.45,0.0001452,2]
[360948727,1747159920935,-400.0,0.0001452,2]
[360948728,1747159921211,-626.11,0.0001452,2]
[360948729,1747159921220,-400.0,0.0001452,2]
[360948730,1747159921230,-463.34,0.0001452,2]
[360948731,1747159921239,-488.25,0.0001452,2]
[360948732,1747159921252,-400.0,0.0001452,2]
[360948733,1747159921262,-400.0,0.0001452,2]
[360948734,1747159921271,-503.9,0.0001452,2]
[360948735,1747159921280,-657.34,0.0001452,2]
[360948736,1747159921289,-400.0,0.0001452,2]
[360948737,1747159921299,-441.68,0.0001452,2]
[360948738,1747159921308,-645.08,0.0001452,2]
[360948739,1747159921318,-530.14,0.0001452,2]
[360948740,1747159921327,-400.0,0.0001452,2]
[360948741,1747159921338,-400.0,0.0001452,2]
[360948742,1747159921347,-852.22,0.0001452,2]
[360948743,1747159921358,-400.0,0.0001452,2]
[360948744,1747159921367,-820.71,0.0001452,2]
[360948745,1747159921377,-400.0,0.0001452,2]
[360948746,1747159921387,-400.0,0.0001452,2]
[360948747,1747159921396,-621.83,0.0001452,2]
[360948748,1747159921405,-400.0,0.0001452,2]
[360948749,1747159921416,-478.47,0.0001452,2]
[360948750,1747159921425,-400.0,0.0001452,2]
[360948751,1747159921435,-404.78,0.0001452,2]
[360948752,1747159921444,-400.0,0.0001452,2]
[360948753,1747159921454,-1162.05,0.0001452,2]
[360948754,1747159921463,-400.0,0.0001452,2]
[360948755,1747159921472,-1079.27,0.0001452,2]
[360948756,1747159921481,-577.59,0.0001452,2]
[360948757,1747159921491,-426.15,0.0001452,2]
[360948758,1747159921502,-3487.68,0.0001452,2]
[360948759,1747159921511,-400.0,0.0001452,2]
[360948760,1747159921521,-549.87284108,0.0001452,2]
[360948761,1747159921530,-459.19,0.0001452,2]
[360948762,1747159921540,-444.36,0.0001452,2]
[360948763,1747159921549,-1738.21,0.0001452,2]
[360948764,1747159921559,-615.27,0.0001452,2]
[360948765,1747159921569,-420.8,0.0001452,2]
[360948766,1747159921579,-400.0,0.0001452,2]
[360948767,1747159921588,-1176.5,0.0001452,2]
[360948768,1747159921597,-1437.22,0.0001452,2]
[360948769,1747159921606,-652.56,0.0001452,2]
[360948770,1747159921616,-488.24,0.0001452,2]
[360948771,1747159921625,-1273.02,0.0001452,2]
[360948772,1747159921634,-290.3599543,0.0001452,2]
[360948773,1747159921644,-400.0,0.0001452,2]
[360948774,1747159921653,-801.33,0.0001452,2]
[360948775,1747159921663,-788.97,0.0001452,2]
[360948776,1747159921673,-400.0,0.0001452,2]
[360948777,1747159921683,-414.37,0.0001452,2]
[360948778,1747159921692,-542.34,0.0001452,2]
[360948779,1747159921701,-449.97,0.0001452,2]
[360948780,1747159921710,-426.3,0.0001452,2]
[360948781,1747159921719,-400.0,0.0001452,2]
[360948782,1747159921728,-1871.8,0.0001452,2]
[360948783,1747159921738,-1359.59,0.0001452,2]
[360948784,1747159921748,-475.68,0.0001452,2]
[360948785,1747159921759,-472.81,0.0001452,2]
[360948786,1747159921769,-400.0,0.0001452,2]
[360948787,1747159921779,-539.11,0.0001452,2]
[360948788,1747159921789,-400.0,0.0001452,2]
[360948789,1747159921799,-1207.49,0.0001452,2]
[360948790,1747159921808,-400.0,0.0001452,2]
[360948791,1747159921818,-1135.76,0.0001452,2]
[360948792,1747159921827,-1233.2,0.0001452,2]
[360948793,1747159921836,-657.57,0.0001452,2]
[360948794,1747159921846,-726.64,0.0001452,2]
[360948795,1747159921855,-400.0,0.0001452,2]
[360948796,1747159921865,-529.97,0.0001452,2]
[360948797,1747159921874,-1268.75,0.0001452,2]
[360948798,1747159921885,-400.0,0.0001452,2]
[360948799,1747159921895,-608.84,0.0001452,2]
[360948800,1747159921904,-400.0,0.0001452,2]
[360948801,1747159921914,-400.0,0.0001452,2]
[360948802,1747159921924,-457.91,0.0001452,2]
[360948803,1747159921933,-995.85,0.0001452,2]
[360948804,1747159921942,-416.03,0.0001452,2]
[360948805,1747159921952,-736.58,0.0001452,2]
[360948806,1747159921961,-400.0,0.0001452,2]
[360948807,1747159921971,-411.21,0.0001452,2]
[360948808,1747159921982,-553.17,0.0001452,2]
[360948809,1747159921991,-2771.94,0.0001452,2]
[360948810,1747159922001,-400.0,0.0001452,2]
[360948811,1747159922011,-547.99,0.0001452,2]
[360948812,1747159922020,-2640.23,0.0001452,2]
[360948813,1747159922031,-400.0,0.0001452,2]
[360948814,1747159922040,-1191.42,0.0001452,2]
[360948815,1747159922050,-400.0,0.0001452,2]
[360948816,1747159922060,-1798.17,0.0001452,2]
[360948817,1747159922070,-3074.15,0.0001452,2]
[360948818,1747159922080,-1043.95,0.0001452,2]
[360948819,1747159922090,-828.17,0.0001452,2]
[360948820,1747159922099,-1909.44,0.0001452,2]
[360948821,1747159922109,-2209.39,0.0001452,2]
[360948822,1747159922118,-2113.1,0.0001452,2]
[360948823,1747159922127,-1584.79,0.0001452,2]
[360948824,1747159922136,-894.32,0.0001452,2]
[360948825,1747159922146,-2266.23,0.0001452,2]
[360948826,1747159922155,-400.0,0.0001452,2]
[360948827,1747159922165,-403.62,0.0001452,2]
[360948828,1747159922177,-400.0,0.0001452,2]
[360948829,1747159922187,-1157.78,0.0001452,2]
[360948830,1747159922196,-448.59,0.0001452,2]
[360948831,1747159922206,-2334.67,0.0001452,2]
[360948832,1747159922217,-2166.25,0.0001452,2]
[360948833,1747159922227,-3592.14,0.0001452,2]
[360948834,1747159922236,-414.75,0.0001452,2]
[360948835,1747159922247,-576.56,0.0001452,2]
[360948836,1747159922257,-400.0,0.0001452,2]
[360948837,1747159922267,-400.0,0.0001452,2]
[360948838,1747159922276,-529.13,0.0001452,2]
[360948839,1747159922285,-500.19,0.0001452,2]
[360948840,1747159922295,-1411.28,0.0001452,2]
[360948841,1747159922305,-400.0,0.0001452,2]
[360948842,1747159922314,-445.9,0.0001452,2]
[360948843,1747159922324,-534.86,0.0001452,2]
[360948844,1747159922334,-706.58,0.0001452,2]
[360948845,1747159922344,-1060.09,0.0001452,2]
[360948846,1747159922353,-440.85,0.0001452,2]
[360948847,1747159922362,-785.11,0.0001452,2]
[360948848,1747159922372,-782.86,0.0001452,2]
[360948849,1747159922382,-508.12,0.0001452,2]
[360948850,1747159922392,-792.31,0.0001452,2]
[360948851,1747159922401,-1373.03,0.0001452,2]
[360948852,1747159922411,-507.26,0.0001452,2]
[360948853,1747159922421,-400.0,0.0001452,2]
[360948854,1747159922431,-439.37,0.0001452,2]
[360948855,1747159922441,-400.0,0.0001452,2]
[360948856,1747159922451,-835.87,0.0001452,2]
[360948857,1747159922460,-1203.29,0.0001452,2]
[360948858,1747159922474,-705.65,0.0001452,2]
[360948859,1747159922484,-871.93,0.0001452,2]
[360948860,1747159922494,-400.0,0.0001452,2]
[360948861,1747159922504,-786.26,0.0001452,2]
[360948862,1747159922514,-801.16,0.0001452,2]
[360948863,1747159922523,-1841.1,0.0001452,2]
[360948864,1747159922535,-522.01,0.0001452,2]
[360948865,1747159922545,-400.0,0.0001452,2]
[360948866,1747159922555,-952.91,0.0001452,2]
[360948867,1747159922564,-589.31,0.0001452,2]
[360948868,1747159922574,-440.12,0.0001452,2]
[360948869,1747159922583,-689.79,0.0001452,2]
[360948870,1747159922593,-1040.35,0.0001452,2]
[360948871,1747159922603,-2832.85,0.0001452,2]
[360948872,1747159922612,-400.0,0.0001452,2]
[360948873,1747159922622,-837.08,0.0001452,2]
[360948874,1747159922631,-722.75,0.0001452,2]
[360948875,1747159922641,-1518.61,0.0001452,2]
[360948876,1747159922651,-418.45,0.0001452,2]
[360948877,1747159922660,-538.57,0.0001452,2]
[360948878,1747159922669,-2035.72,0.0001452,2]
[360948879,1747159922679,-452.37,0.0001452,2]
[360948880,1747159922689,-504.22,0.0001452,2]
[360948881,1747159922699,-699.02,0.0001452,2]
[360948882,1747159922709,-928.98,0.0001452,2]
[360948883,1747159922719,-1636.63,0.0001452,2]
[360948884,1747159922729,-494.98,0.0001452,2]
[360948885,1747159922739,-1883.29,0.0001452,2]
[360948886,1747159922750,-610.23,0.0001452,2]
[360948887,1747159922760,-768.25,0.0001452,2]
[360948888,1747159922770,-768.75,0.0001452,2]
[360948889,1747159922781,-1014.11,0.0001452,2]
[360948890,1747159922791,-620.02,0.0001452,2]
[360948891,1747159922800,-1271.95,0.0001452,2]
[360948892,1747159922810,-400.0,0.0001452,2]
[360948893,1747159922820,-756.59,0.0001452,2]
[360948894,1747159922830,-400.0,0.0001452,2]
[360948895,1747159922839,-935.97,0.0001452,2]
[360948896,1747159922849,-1412.1,0.0001452,2]
[360948897,1747159922859,-539.94,0.0001452,2]
[360948898,1747159922868,-1632.7,0.0001452,2]
[360948899,1747159922878,-400.0,0.0001452,2]
[360948900,1747159922888,-871.79,0.0001452,2]
[360948901,1747159922898,-451.47,0.0001452,2]
[360948902,1747159922908,-400.0,0.0001452,2]
[360948903,1747159922918,-560.27,0.0001452,2]
[360948904,1747159922927,-400.0,0.0001452,2]
[360948905,1747159922938,-2068.68,0.0001452,2]
[360948906,1747159922947,-570.27,0.0001452,2]
[360948907,1747159922957,-967.47,0.0001452,2]
[360948908,1747159922967,-669.93,0.0001452,2]
[360948909,1747159922976,-1036.32,0.0001452,2]
[360948910,1747159922986,-444.85,0.0001452,2]
[360948911,1747159922996,-680.61,0.0001452,2]
[360948912,1747159923006,-4665.34,0.0001452,2]
[360948913,1747159923016,-400.0,0.0001452,2]
[360948914,1747159923026,-1314.16,0.0001452,2]
[360948915,1747159923035,-4183.88,0.0001452,2]
[360948916,1747159923046,-547.25,0.0001452,2]
[360948917,1747159923057,-400.0,0.0001452,2]
[360948918,1747159923067,-579.54,0.0001452,2]
[360948919,1747159923077,-786.38,0.0001452,2]
[360948920,1747159923087,-1255.33,0.0001452,2]
[360948921,1747159923097,-2046.23,0.0001452,2]
[360948922,1747159923107,-577.34,0.0001452,2]
[360948923,1747159923117,-9519.31,0.0001452,2]
[360948924,1747159923129,-834.73,0.0001452,2]
[360948925,1747159923139,-400.0,0.0001452,2]
[360948926,1747159923149,-1346.7,0.0001452,2]
[360948927,1747159923160,-2754.3,0.0001452,2]
[360948928,1747159923174,-400.0,0.0001452,2]
[360948929,1747159923185,-10256.28,0.0001452,2]
[360948930,1747159923196,-400.0,0.0001452,2]
[360948931,1747159923207,-487.25,0.0001452,2]
[360948932,1747159923216,-400.0,0.0001452,2]
[360948933,1747159923227,-400.0,0.0001452,2]
[360948934,1747159923237,-2145.85,0.0001452,2]
[360948935,1747159923248,-778.75,0.0001452,2]
[360948936,1747159923259,-1086.29,0.0001452,2]
[360948937,1747159923269,-712.61,0.0001452,2]
[360948938,1747159923279,-1146.85,0.0001452,2]
[360948939,1747159923289,-427.04,0.0001452,2]
[360948940,1747159923299,-1787.73,0.0001452,2]
[360948941,1747159923308,-587.09,0.0001452,2]
[360948942,1747159923318,-2676.84,0.0001452,2]
[360948943,1747159923328,-936.8,0.0001452,2]
[360948944,1747159923338,-538.65,0.0001452,2]
[360948945,1747159923348,-570.54,0.0001452,2]
[360948946,1747159923358,-671.91,0.0001452,2]
[360948947,1747159923368,-1004.59,0.0001452,2]
[360948948,1747159923378,-400.0,0.0001452,2]
[360948949,1747159923388,-583.74,0.0001452,2]
[360948950,1747159923398,-628.15,0.0001452,2]
[360948951,1747159923408,-409.42,0.0001452,2]
[360948952,1747159923419,-10626.02,0.0001452,2]
[360948953,1747159923430,-400.0,0.0001452,2]
[360948954,1747159923439,-515.12,0.0001452,2]
[360948955,1747159923449,-6049.69,0.0001452,2]
[360948956,1747159923460,-1033.11,0.0001452,2]
[360948957,1747159923470,-400.0,0.0001452,2]
[360948958,1747159923482,-437.19,0.0001452,2]
[360948959,1747159923492,-569.55,0.0001452,2]
[360948960,1747159923503,-467.47,0.0001452,2]
[360948961,1747159923514,-2264.96,0.0001452,2]
[360948962,1747159923524,-795.31,0.0001452,2]
[360948963,1747159923534,-405.13,0.0001452,2]
[360948964,1747159923544,-1277.12,0.0001452,2]
[360948965,1747159923554,-400.0,0.0001452,2]
[360948966,1747159923752,-10483.18,0.0001452,2]
[360948967,1747159923763,-1585.22,0.0001452,2]
[360948968,1747159923773,-843.23,0.0001452,2]
[360948969,1747159923785,-1106.58,0.0001452,2]
[360948970,1747159923795,-400.0,0.0001452,2]
[360948971,1747159923806,-413.28,0.0001452,2]
[360948972,1747159923817,-1973.13,0.0001452,2]
[360948973,1747159923827,-400.0,0.0001452,2]
[360948974,1747159923838,-565.33,0.0001452,2]
[360948975,1747159923849,-1087.57,0.0001452,2]
[360948976,1747159923859,-2020.68,0.0001452,2]
[360948977,1747159923871,-400.0,0.0001452,2]
[360948978,1747159923880,-686.06,0.0001452,2]
[360948979,1747159923892,-400.0,0.0001452,2]
[360948980,1747159923906,-400.0,0.0001452,2]
[360948981,1747159923916,-1760.36,0.0001452,2]
[360948982,1747159923930,-2493.43,0.0001452,2]
[360948983,1747159923942,-483.53,0.0001452,2]
[360948984,1747159923954,-523.64,0.0001452,2]
[360948985,1747159923964,-2179.19,0.0001452,2]
[360948986,1747159923976,-933.31,0.0001452,2]
[360948987,1747159923988,-1454.44,0.0001452,2]
[360948988,1747159923999,-448.16,0.0001452,2]
[360948989,1747159924010,-669.67,0.0001452,2]
[360948990,1747159924021,-495.63,0.0001452,2]
[360948991,1747159924033,-407.59,0.0001452,2]
[360948992,1747159924043,-2557.8,0.0001452,2]
[360948993,1747159924054,-733.19,0.0001452,2]
[360948994,1747159924064,-1387.03,0.0001452,2]
[360948995,1747159924074,-1323.75,0.0001452,2]
[360948996,1747159924085,-639.94,0.0001452,2]
[360948997,1747159924095,-1956.5,0.0001452,2]
[360948998,1747159924105,-101544.96,0.0001452,2]
[360948999,1747159924116,-447.02,0.0001452,2]
[360949000,1747159924125,-322.75849386,0.0001452,2]
[360949001,1747159924136,-2181.62,0.0001452,2]
[360949002,1747159924146,-707.87,0.0001452,2]
[360949003,1747159924156,-946.15,0.0001452,2]
[360949004,1747159924167,-809.14,0.0001452,2]
[360949005,1747159924180,-676.8,0.0001452,2]
[360949006,1747159924189,-492.65,0.0001452,2]
[360949007,1747159924200,-4071.95,0.00014555,2]
[360949008,1747159924209,-998.98,0.00014579,2]
[360949009,1747159924219,-630.0,0.00014584,2]
[360949010,1747159924229,-151.0,0.00014613,2]
[360949011,1747159924238,-152.0,0.00014746,4]
[360949012,1747159924250,-150.0,0.0001475,2]
[360949013,1747159924259,-150.0,0.0001475,2]
[360949014,1747159924269,-150.0,0.0001475,2]
[360949015,1747159924279,-150.0,0.0001475,2]
[360949016,1747159924288,-150.0,0.0001475,2]
[360949017,1747159924298,-150.0,0.0001475,2]
[360949018,1747159924308,-150.0,0.0001475,2]
[360949019,1747159924318,-150.0,0.0001475,2]
[360949020,1747159924328,-150.0,0.0001475,2]
[360949021,1747159924338,-150.0,0.0001475,2]
[360949022,1747159924348,-150.0,0.0001475,2]
[360949023,1747159924359,-150.0,0.0001475,2]
[360949024,1747159924369,-150.0,0.0001475,2]
[360949025,1747159924378,-150.0,0.0001475,2]
[360949026,1747159924388,-150.0,0.0001475,2]
[360949027,1747159924398,-150.0,0.0001475,2]
[360949028,1747159924408,-150.0,0.0001475,2]
[360949029,1747159924417,-300.0,0.0001475,2]
[360949030,1747159924427,-150.0,0.0001475,2]
[360949031,1747159924436,-150.0,0.0001475,2]
[360949032,1747159924446,-150.0,0.0001475,2]
[360949033,1747159924456,-150.0,0.0001475,2]
[360949034,1747159924465,-150.0,0.0001475,2]
[360949035,1747159924475,-150.0,0.0001475,2]
[360949036,1747159924484,-150.0,0.0001475,2]
[360949037,1747159924494,-150.0,0.0001475,2]
[360949038,1747159924505,-150.0,0.0001475,2]
[360949039,1747159924516,-150.0,0.0001475,2]
[360949040,1747159924526,-170.0,0.0001475,2]
[360949041,1747159924536,-150.0,0.0001475,2]
[360949042,1747159924546,-170.0,0.0001475,2]
[360949043,1747159924555,-150.0,0.0001475,2]
[360949044,1747159924565,-170.0,0.0001475,2]
[360949045,1747159924574,-150.0,0.0001475,2]
[360949046,1747159924584,-170.0,0.0001475,2]
[360949047,1747159924593,-150.0,0.0001475,2]
[360949048,1747159924602,-150.0,0.0001475,2]
[360949049,1747159924612,-170.0,0.0001475,2]
[360949050,1747159924621,-150.0,0.0001475,2]
[360949051,1747159924630,-170.0,0.0001475,2]
[360949052,1747159924639,-150.0,0.0001475,2]
[360949053,1747159924649,-170.0,0.0001475,2]
[360949054,1747159924658,-150.0,0.0001475,2]
[360949055,1747159924668,-150.0,0.0001475,2]
[360949056,1747159924677,-170.0,0.0001475,2]
[360949057,1747159924686,-161.43,0.00014787,2]
[360949058,1747159924696,-400.0,0.00014794,2]
[360949059,1747159924705,-2722.32,0.00014794,2]
[360949060,1747159924714,-916.93,0.00014794,2]
[360949061,1747159924724,-520.78,0.00014794,2]
[360949062,1747159924733,-506.41,0.00014794,2]
[360949063,1747159924743,-694.78,0.00014794,2]